Cogmind - Beta 15 --- EXPLORER MODE // 2025.05.13 @ 01:21:42 Player: Arctrect Result: Destroyed by G-47 Trooper with Particle Gun Performance ------------- Evolutions (0) 0 Regions Visited (1) 200 Robots Destroyed (1) 5 Value Destroyed (34) 34 Prototype IDs (0) 0 Alien Tech Used (0) 0 Bonus (0) 0 TOTAL SCORE: 239 Bonus ------- None Cogmind --------- Core Integrity 0/250 Matter 257/300 Energy 250/250 System Corruption 1% Temperature Cool (27) Movement Core (100) Ox1 Location -10/Materials Parts ------- > --- POWER (1) -------- Ion Engine > --- PROPULSION (2) --- (None) > --- UTILITY (2) ------ (None) > --- WEAPON (3) ------- (None) > --- INVENTORY (5) ---- (None) Peak State ------------ > --- POWER ------------ Ion Engine > --- PROPULSION ------- Flight Unit > --- UTILITY ---------- (None) > --- WEAPON ----------- (None) > --- INVENTORY -------- (None) [Rating: 2] Favorites ----------- Power Ion Engine Engine Ion Engine Propulsion Flight Unit Flight Unit Flight Unit Utility None Weapon None Build | -11 -10 ------- Run | Yrd Mat Slots Evolved 1 | . 1 Power . | . . Propulsion . | . . Utility . | . . Weapon 1 | . 1 Parts Attached 2 | . 2 Power 1 | . 1 Engine 1 | . 1 Core . | . . Reactor . | . . Propulsion 1 | . 1 Treads . | . . Leg . | . . Wheel . | . . Hover . | . . Flight 1 | . 1 Utility . | . . Device . | . . Storage . | . . Processor . | . . Hackware . | . . Protection . | . . Artifact . | . . Weapon . | . . Energy Gun . | . . Energy Cannon . | . . Ballistic Gun . | . . Ballistic Cannon . | . . Launcher . | . . Special Weapon . | . . Impact Weapon . | . . Slashing Weapon . | . . Piercing Weapon . | . . Special Melee Weapon . | . . Unidentified Prototypes . | . . Parts Lost 1 | . 1 Power . | . . Propulsion 1 | . 1 Utility . | . . Weapon . | . . Highest Loss Streak 1 | . 1 To Critical Strikes . | . . Average Backups . | . . Power . | . . Propulsion . | . . Utility . | . . Weapon . | . . Tool/Special . | . . Unused Backups . | . . Power . | . . Propulsion . | . . Utility . | . . Weapon . | . . Tool/Special . | . . Average Slot Usage (%) 11 | . 11 Engine 6 | . 6 Flight 4 | . 4 Peak Build Rating 2 | . 2 Average Rating . | . . On Entrance . | . . Naked Turns 205 | . 205 Heaviest Build 5 | . 5 Greatest Support 4 | 3 4 Greatest Overweight (x) 1 | . 1 Average Overweight (x) . | . . Largest Inventory Capacity 5 | 5 5 Average Capacity 5 | 5 5 Most Carried 2 | . 2 Average Carried . | . . Final Capacity 5 | 5 5 Final Carried . | . . Class Distribution -------------------- 100% | Hacker-Mutant Dominant Class ---------------- Hacker-Mutant | -10/Materials Resources | -11 -10 ----------- Run | Yrd Mat Matter Collected 150 | 114 36 Remotely . | . . Salvage Created 36 | . 36 Parts 3 | . 3 Haulers Intercepted . | . . Recyclers Shooed . | . . Parts Field Recycled . | . . Retrieved Matter . | . . Parts Self-Destructed . | . . Prevented . | . . Kills | -11 -10 ------- Run | Yrd Mat Combat Hostiles Destroyed 1 | . 1 Melee 1 | . 1 Classes Destroyed 1 | . 1 Grunt 1 | . 1 Best Kill Streak 1 | . 1 Combat Bots Only 1 | . 1 Max Kills in Single Turn 1 | . 1 Gunslinging . | . . Exploded . | . . Melee 1 | . 1 Uniques/NPCs Destroyed . | . . Combat | -11 -10 -------- Run | Yrd Mat Hostile Shots Fired 60 | . 60 Missed 22 | . 22 Hits 38 | . 38 Projectile 38 | . 38 Critical Strikes 2 | . 2 Damage Taken 325 | . 325 Core 258 | . 258 Absorbed by Shields . | . . Ignored by Resistances 192 | . 192 Core Remaining (%) 100 | 100 . Volleys Fired . | . . Largest . | . . Hottest . | . . Shots Fired . | . . Gun . | . . Cannon . | . . Launcher . | . . Special . | . . Kinetic . | . . Thermal . | . . Explosive . | . . Electromagnetic . | . . Robot Hit Streak . | . . Robot Miss Streak . | . . Penetration Max . | . . Secondary Targets . | . . Shots Hit Robots . | . . Core Hits 3 | . 3 Critical Kills . | . . Critical Parts Destroyed . | . . Critical Strikes . | . . Melee Attacks . | . . Impact . | . . Slashing . | . . Piercing . | . . Sneak Attacks . | . . Combat Hostiles . | . . Follow-up Attacks . | . . Damage Inflicted 24 | . 24 Guns . | . . Cannons . | . . Explosions . | . . Melee . | . . Ramming 24 | . 24 Kinetic . | . . Thermal . | . . Explosive . | . . Electromagnetic . | . . Impact . | . . Slashing . | . . Piercing . | . . Highest Corruption 1 | . 1 Average Corruption 1 | . 1 Corruption Purged . | . . Corruption Blocked . | . . Overload Shots . | . . Overflow Damage . | . . Projectiles . | . . Explosions . | . . Melee . | . . Knockbacks 1 | . 1 Impact 1 | . 1 Kinetic . | . . Secondary . | . . Self-Inflicted Damage 9 | . 9 Shots . | . . Rammed 8 | . 8 Targets Rammed 8 | . 8 Kicked . | . . Crushed . | . . Highest Temperature 9 | . 9 Average Temperature 9 | . 9 Received Heat Transfer 276 | . 276 Siege Activations . | . . Martial Activations . | . . Shielding Activations . | . . Robots Disrupted . | . . Combat Hostiles . | . . Robots Corrupted . | . . Combat Hostiles . | . . Parts Fried . | . . Impact Corruptions . | . . Robots Melted . | . . Combat Hostiles . | . . Parts Melted . | . . Heat Transferred . | . . Parts Sabotaged . | . . Parts Stolen . | . . Parts Stripped . | . . Power Chain Reactions . | . . Alert | -11 -10 ------- Run | Yrd Mat Maximum Alert Level . | . . Low Security (%) 100 | 100 100 Level 1 . | . . Level 2 . | . . Level 3 . | . . Level 4 . | . . Level 5 . | . . High Security . | . . Max Security . | . . Peak Influence 80 | . 80 Initial . | . . Average 18 | . 19 Influence Increases 185 | . 185 Destroy 0b10 Robot/C 20 | . 20 Partial Spotted 15 | . 15 Lose Combat Pursuer 150 | . 150 Influence Decreases 185 | . 185 Time Decay 185 | . 185 Squads Dispatched . | . . Investigation . | . . Extermination . | . . Reinforcement . | . . Assault . | . . Garrison . | . . Intercept . | . . Searches Triggered . | . . Construction Impeded . | . . Haulers Reinforced . | . . Active Scanning Responses . | . . Cargo Convoy Interrupts . | . . Stealth | -11 -10 --------- Run | Yrd Mat Distress Signals 2 | . 2 Communications Jammed . | . . Distress Signals . | . . Times Spotted 14 | . 14 Peak Tracking Total 6 | . 6 Tactical Retreats 4 | . 4 Traps | -11 -10 ------- Run | Yrd Mat Traps Triggered . | . . Indirectly . | . . Trap Hack Attempts . | . . Triggered . | . . Disarmed . | . . Reprogrammed . | . . Reused . | . . Traps Extracted . | . . Installed . | . . Triggered . | . . Machines | -11 -10 ---------- Run | Yrd Mat Machines Disabled . | . . Max in Single Turn . | . . Machines Repaired . | . . Machines Dismantled . | . . Machines Sabotaged . | . . Overloaded Fab Kills . | . . Hacking | -11 -10 --------- Run | Yrd Mat Machines Accessed . | . . Terminals . | . . Fabricators . | . . Repair Stations . | . . Recycling Units . | . . Scanalyzers . | . . Garrison Access . | . . Total Hacks . | . . Successful . | . . Failed . | . . Catastrophic . | . . Database Lockouts . | . . Manual . | . . Terminals . | . . Fabricators . | . . Repair Stations . | . . Recycling Units . | . . Scanalyzers . | . . Garrison Access . | . . Terminal Hacks . | . . Fabricator Hacks . | . . Repair Station Hacks . | . . Recycling Unit Hacks . | . . Scanalyzer . | . . Garrison Access Hacks . | . . Unauthorized Hacks . | . . Terminals . | . . Fabricators . | . . Repair Stations . | . . Recycling Units . | . . Scanalyzers . | . . Garrison Access . | . . Data Cores Recovered . | . . Used . | . . Hacking Detections . | . . Full Trace Events . | . . Feedback Events . | . . Feedback Blocked . | . . Robot Schematics Acquired . | . . Robots Built . | . . Authchips . | . . Time . | . . Total Robot Build Rating . | . . Part Schematics Acquired . | . . Parts Built . | . . Authchips . | . . Time . | . . Total Part Build Rating . | . . Parts Repaired . | . . Time . | . . Parts Recycled . | . . Recycled Matter . | . . Retrieved Matter . | . . Retrieved Components . | . . Parts Scanalyzed . | . . Part Schematics Acquired . | . . Parts Damaged . | . . Bothacking | -11 -10 ------------ Run | Yrd Mat Used RIF Installer . | . . Robots Hacked . | . . Non-combat . | . . Combat . | . . Robot Hacks Applied . | . . Relay Couplers Released . | . . Fabnet Peak Effective % . | . . Robots Rewired . | . . Allies Hacked . | . . Hacks Repelled . | . . Allies | -11 -10 -------- Run | Yrd Mat Total Allies . | . . Largest Group . | . . Highest-Rated Group . | . . Highest-Rated Ally . | . . Total Orders . | . . Ally Attacks . | . . Total Damage . | . . Kills . | . . Allies Corrupted . | . . Allies Melted . | . . Intel | -11 -10 ------- Run | Yrd Mat Active Infowar (turns) . | . . Robot Analysis Total . | . . Derelict Logs Recovered . | . . Drone Launches . | . . Drone Recoveries . | . . Exploration | -11 -10 ------------- Run | Yrd Mat Turns Passed 477 | 27 450 Spaces Moved 659 | 50 609 Core 516 | 50 466 Treads . | . . Legs . | . . Wheels . | . . Hover . | . . Flight 143 | . 143 Fastest Speed 50 | 50 50 Average Speed 70 | 50 71 Slowest Speed 120 | 50 120 Overloaded Moves . | . . Propulsion Burnouts . | . . Robots Hopped . | . . Potential Cave-ins . | . . Cave-ins Triggered . | . . Exploration Rate (%) 29 | 4 55 Regions Visited 1 Branch Regions . Pre-discovered Areas . | . . Known Exits Taken 1 | 1 . Unknown Exits Taken . | . . Scrap Searched . | . . Spaces Dug . | . . Terrain Destroyed . | . . Melee . | . . Projectile . | . . AOE . | . . Terrain Rammed . | . . Walls Destroyed . | . . Machines Disabled . | . . Actions | -11 -10 --------- Run | Yrd Mat Total 672 | 51 621 Wait 2 | 2 . Move 658 | 49 609 Hop . | . . Pick Up 2 | . 2 Fast Attach . | . . Attach 2 | . 2 Detach . | . . Swap . | . . Drop . | . . Fire . | . . Melee . | . . Ram 8 | . 8 Kick . | . . Crush . | . . Escape Stasis . | . . Rewire . | . . Trap . | . . Miscellaneous . | . . Route ------- -11/Scrapyard -10/Materials (discovered 1 exit: *Mat) History --------- Turn | Location | Event 6 | -11/Scrapyard | Identified exit to Materials 6 | -11/Scrapyard | Discovered exit to Materials (range 16) 28 | -11/Scrapyard | Entered Materials 28 | -10/Materials | Evolved 1 slot: Weapon x1 29 | -10/Materials | Met a group of wandering Federalists 74 | -10/Materials | Identified exit to Materials 74 | -10/Materials | Discovered exit to Materials (range 16) 148 | -10/Materials | Lost 3 allies 270 | -10/Materials | Core integrity fell below 50% 312 | -10/Materials | Build established: Hacker-Mutant 356 | -10/Materials | Core integrity fell below 20% 478 | -10/Materials | Destroyed by G-47 Trooper with Particle Gun Last Messages --------------- 00191_ G-34 Mercenary destroyed. 00192_ Acquired 36 matter. 00193_ K-01 Serf cleans the TF Node. 00196_ R-06 Scavenger collects Sml. Laser. 00199_ R-06 Scavenger collects Aluminum Leg. 00232_ Acquired Flight Unit. 00258_ W-16 Scout distress signal alerts nearby ally. 00305_ Electrolysis Chamber disabled. 00316_ Critical hit (Burn: +37). 00324_ Slammed into W-16 Scout. 00324_ Destabilizing: Core damaged (-2). 00353_ Slammed into G-47 Trooper. 00354_ G-47 Trooper knocked back. 00354_ Destabilizing: System corrupted (+1). 00365_ Slammed into G-47 Trooper. 00366_ Destabilizing: Core damaged (-5). 00368_ Slammed into G-47 Trooper. 00386_ Slammed into R-06 Scavenger. 00414_ Flight Unit destroyed. 00478_ Critical hit (Burn: +37). Map ----- +----------------------------------------------------+ | | | | | | | | | | | | | | | | | | | | | | | | | | | | | | | | | | | | | | | | | | | | | ??????????????????????##############??? | | ######????????????????# | #??? | | T #????????????????# g #??? | | #????????????????# @""" """ #??? | | #????????????????# """ """ #??? | | #????????????????# """ """ #??? | | #????????????????#######+######??? | | "" #????????????????????# #?????? | | "" #????????????????????# #?????? | | "" #????????????????????# ########?? | | ######????????????????????# # ! # | | #???????????????????????+ + # | | #???????????????????????# # # | | #???????????????????????# #?? """ # | | ###############?????#+#?# #????"""?? | | #?????# #?# #??????"?? | | ####### ### #????????? | | #????????? | | ############# #????????? | | #???????????# ##############????????? | | #???????????# #?????????????????????? | | #?????????? + #?????????????????????? | | #????????"" # #?????????????????????? | | #??????? # #?????????????????????? | | #?????? ?# #?????????????????????? | | ??????" ??# #?????????????????????? | | ??????" ??# #?????????????????????? | | ??????###???# #?????????????????????? | +----------------------------------------------------+ Best States ------------- Heat Dissipation 25 Energy Generation 10 Energy Capacity 250 Matter Stores 257 Matter Capacity 300 Sight Range 16 Terrain Scan Density 10 Resistance: KI 35 Resistance: TH 35 Resistance: EX 35 Resistance: EM 35 Resistance: I 35 Resistance: S 35 Resistance: P 35 Evasion (%) 50 Offensive Hacking 20 Item Schematics ----------------- None Robot Schematics ------------------ None Fabricated ------------ Nothing Repaired ---------- Nothing Alien Tech Used ----------------- None Achievements -------------- None Challenges ------------ None Game ------ Seed FusionProcessingCoupler Manual? 0 Play Time 00:12:16 Cumulative 40.7 hours Start 2025.05.13 @ 01:14:19 End 2025.05.13 @ 01:21:42 Sessions 1 Manual Loads 0 Difficulty Explorer Special Mode None Game No. 48 Rogue 31 Adventurer 0 Explorer 17 Win Type - Total 0 Types 0/0/0/0/0/0/0/0/0/0 Lore% 11 Gallery% 20 Achievement% 22 Wizard Run 0 Options --------- Layout 0 ASCII 0 Keyboard 0 Movement Arrows Keybinds 0 Fullscreen 1 Font 12/Smallcaps Map View 76x56 Zoom Use 0% Tactical HUD 1 Map Filters NONE Filters NONE Steam SD RUN: 4f4efc5a-72f0-41cb-aed3-21da42a1c54e